bitfinex-derivatives/quotes_ETHF0:USTF0_20230401
["timestamp","ask_amount","ask_price","bid_price","bid_amount"]
[1680330270500,1.66738819,1822.9,1822.8,0.31284269]
[1680330272108,12.3158,1822.5,1822.0,0.002]
[1680330272402,5.484,1822.0,1821.3,3.2078]
[1680330272601,1.094,1821.5,1821.3,3.2078]
[1680330273404,1.095,1821.4,1821.3,3.2078]
[1680330274108,1.095,1821.4,1821.1,3.2078]
[1680330275402,1.098,1821.2,1820.9,4.64313357]
[1680330275606,1.098,1821.2,1820.9,0.57467749]
[1680330275901,1.094,1821.0,1820.8,5.37767749]
[1680330276101,1.094,1821.0,1820.8,0.57467749]
[1680330276304,1.094,1821.0,1820.7,4.06845608]
[1680330276305,1.094,1821.0,1820.7,3.78247749]
[1680330278411,1.094,1821.0,1820.7,3.2078]
[1680330279612,0.18079085,1820.9,1820.7,3.2078]
[1680330281116,1.088,1820.8,1820.7,3.2078]
[1680330291513,1.29703563,1820.8,1820.7,3.2078]
[1680330294830,0.20903563,1820.8,1820.7,3.2078]
[1680330295015,1.092,1821.0,1820.7,3.2078]
[1680330295711,3.2078,1821.2,1820.7,3.2078]
[1680330295712,1.092,1821.2,1820.9,3.2078]
[1680330296110,1.092,1821.2,1821.1,3.2078]
[1680330297012,1.092,1821.5,1821.1,3.2078]
[1680330297525,1.55291064,1821.6,1821.3,3.2078]
[1680330297919,1.0,1821.6,1821.3,3.2078]
[1680330298119,1.0,1821.6,1821.1,3.2078]
[1680330298324,1.0,1821.6,1821.2,1.0]
[1680330299522,1.0,1821.6,1821.1,3.2078]
[1680330303225,9.6998,1821.6,1821.1,3.2078]
[1680330306023,0.15149139,1821.5,1821.1,3.2078]
[1680330307828,8.234,1821.2,1820.7,3.2078]
[1680330308227,1.0,1821.1,1820.7,3.2078]
[1680330314337,1.0,1821.1,1820.7,3.78247749]
[1680330314529,0.2036915,1821.0,1820.7,3.78247749]
[1680330316338,1.57058501,1821.1,1820.9,0.57467749]
[1680330316531,9.36588374,1821.2,1820.9,3.78247749]
[1680330316734,9.36588374,1821.2,1820.9,4.64313357]
[1680330316928,1.13188374,1821.2,1820.9,3.78247749]
[1680330317132,0.57058501,1821.2,1820.9,4.64313357]
[1680330317338,0.57058501,1821.2,1821.0,0.57467749]
[1680330317534,1.57058501,1821.2,1821.0,0.57467749]
[1680330317842,0.57058501,1821.2,1821.0,0.57467749]
[1680330318536,1.42646253,1821.2,1821.0,0.57467749]
[1680330318736,0.57058501,1821.2,1821.0,0.57467749]
[1680330320238,1.42646253,1821.2,1821.0,0.57467749]
[1680330320544,0.57058501,1821.1,1821.0,0.57467749]
[1680330321042,2.42646253,1821.2,1821.0,0.57467749]
[1680330321236,0.57058501,1821.1,1821.0,0.57467749]
[1680330323638,1.42646253,1821.2,1821.0,0.57467749]
[1680330323838,0.57058501,1821.2,1821.1,0.57467749]
[1680330324043,0.57058501,1821.2,1821.0,1.43533357]
[1680330324343,0.57058501,1821.2,1821.1,0.57467749]
[1680330328042,0.85587752,1821.3,1821.1,4.64313357]
[1680330328043,0.57058501,1821.3,1821.1,4.64313357]
[1680330328241,1.42646253,1821.4,1821.2,1.43533357]
[1680330328444,0.57058501,1821.4,1821.2,1.57467749]
[1680330328643,0.57058501,1821.4,1821.3,0.57467749]
[1680330328842,0.57058501,1821.4,1821.3,3.78247749]
[1680330329038,1.42646253,1821.4,1821.2,0.57467749]
[1680330329241,0.57364092,1821.3,1821.1,3.78247749]
[1680330329445,2.42951844,1821.3,1821.1,3.78247749]
[1680330329645,0.12652406,1821.2,1821.1,3.78247749]
[1680330330653,0.12652406,1821.2,1821.1,4.64313357]
[1680330331045,0.12652406,1821.2,1821.1,3.78247749]
[1680330332358,0.12652406,1821.2,1821.1,4.64313357]
[1680330332842,0.12652406,1821.2,1821.1,3.78247749]
[1680330333456,0.12652406,1821.2,1821.1,4.64313357]
[1680330333656,0.12652406,1821.2,1821.1,3.78247749]
[1680330334151,0.12652406,1821.2,1821.1,4.64313357]
[1680330335160,0.12652406,1821.2,1821.1,3.78247749]
[1680330336049,0.12652406,1821.2,1821.1,4.64313357]
[1680330336247,0.12652406,1821.2,1821.1,3.78247749]
[1680330336451,0.12652406,1821.2,1821.1,4.06845608]
[1680330336957,0.12652406,1821.2,1821.1,4.2078]
[1680330337253,0.57364092,1821.3,1821.1,5.07045017]
[1680330337450,0.85587752,1821.4,1821.2,0.86265017]
[1680330337451,0.57364092,1821.4,1821.2,0.86265017]
[1680330337646,0.57364092,1821.4,1821.3,3.78289532]
[1680330338451,0.57364092,1821.5,1821.3,4.6454628]
[1680330339357,0.57364092,1821.5,1821.3,0.57501263]
[1680330339358,1.42951844,1821.5,1821.3,0.57501263]
[1680330340051,0.57364092,1821.5,1821.3,0.57501263]
[1680330340251,0.57364092,1821.5,1821.3,3.78281263]
[1680330340655,0.57364092,1821.5,1821.4,1.57501263]
[1680330341352,0.57364092,1821.5,1821.4,0.57501263]
[1680330343157,0.85587752,1821.8,1821.4,1.86265017]
[1680330343457,0.85587752,1821.7,1821.5,3.78265199]
[1680330343761,1.85587752,1821.8,1821.5,3.78265199]
[1680330343955,1.0,1821.7,1821.5,3.78265199]
[1680330344155,0.85587752,1821.6,1821.4,0.57485199]
[1680330344463,0.89648765,1821.5,1821.3,0.57485199]
[1680330344657,1.0,1821.4,1821.3,0.57485199]
[1680330346160,1.85587752,1821.4,1821.2,0.57485199]
[1680330348567,0.89648765,1821.5,1821.3,0.57485199]
[1680330349060,1.89648765,1821.5,1821.3,0.57485199]
[1680330349758,1.89648765,1821.5,1821.2,1.43750216]
[1680330350558,0.85587752,1821.4,1821.2,0.57485199]
[1680330351654,1.0,1821.3,1821.2,0.57485199]
[1680330351858,1.85587752,1821.3,1821.1,1.43750216]
[1680330352057,1.85587752,1821.3,1821.1,0.57485199]
[1680330353162,1.85587752,1821.3,1821.1,1.43750216]
[1680330353358,1.85587752,1821.3,1821.1,0.57485199]
[1680330353564,3.2078,1821.2,1821.1,0.57485199]
[1680330358672,4.06367752,1821.2,1821.1,0.57485199]
[1680330359564,4.06367752,1821.2,1821.0,0.86265017]
[1680330359565,4.10474952,1821.2,1821.0,1.43750216]
[1680330359770,4.10474952,1821.2,1821.0,0.57485199]
[1680330359971,1.0,1821.1,1821.0,0.57485199]
[1680330360967,4.10474952,1821.2,1821.0,0.57485199]
[1680330361376,1.0,1821.1,1821.0,0.57485199]
[1680330362169,4.10474952,1821.2,1821.0,0.57485199]
[1680330362675,0.041072,1821.2,1821.1,0.57485199]
[1680330364367,0.041072,1821.2,1821.1,0.86265017]
[1680330364570,0.041072,1821.2,1821.1,1.43797363]
[1680330365076,0.041072,1821.2,1821.1,0.57532346]
[1680330366778,3.248872,1821.2,1821.0,0.00138204]
[1680330366970,14.86717003,1821.1,1820.9,0.00138204]
[1680330367277,4.34897003,1821.0,1820.7,0.86265017]
[1680330367485,3.2078,1820.8,1820.7,0.86265017]
[1680330368174,3.2078,1820.8,1820.6,0.86265017]
[1680330369674,1.0,1820.7,1820.6,0.86265017]
[1680330369873,1.0,1820.7,1820.5,0.86265017]
[1680330370477,3.2078,1820.6,1820.5,0.86265017]
[1680330371779,3.2078,1820.6,1820.4,0.86265017]
[1680330371972,1.0,1820.5,1820.4,0.86265017]
[1680330372171,1.0,1820.5,1820.3,0.86265017]
[1680330372384,4.2078,1820.6,1820.3,0.86265017]
[1680330373981,4.2078,1820.6,1820.2,1.86265017]
[1680330374282,4.2078,1820.6,1820.2,0.86265017]
[1680330374581,0.23006824,1820.5,1820.2,0.86265017]
[1680330374774,1.23006824,1820.5,1820.2,0.86265017]
[1680330375180,0.23006824,1820.5,1820.2,0.86265017]
[1680330375674,0.23006824,1820.5,1820.3,0.86265017]
[1680330375871,0.23006824,1820.5,1820.2,0.86265017]
[1680330376181,1.23006824,1820.5,1820.2,0.86265017]
[1680330376382,0.23006824,1820.5,1820.2,0.86265017]
[1680330378285,1.23006824,1820.5,1820.2,0.86265017]
[1680330379884,0.23006824,1820.5,1820.1,1.86265017]
[1680330382388,0.23006824,1820.5,1820.2,4.2078]
[1680330382586,4.2078,1820.8,1820.3,1.0]
[1680330382889,4.2078,1820.8,1820.2,1.0]
[1680330384181,3.2078,1820.8,1820.2,4.2078]
[1680330384383,16.9158,1821.0,1820.4,3.2078]
[1680330384584,3.2078,1821.0,1820.4,3.2078]
[1680330384788,3.2078,1821.0,1820.5,1.0]
[1680330385487,3.2078,1820.8,1820.3,1.86265017]
[1680330386190,3.2078,1820.8,1820.4,6.06278012]
[1680330386989,3.2078,1820.8,1820.4,9.27058012]
[1680330387188,3.2078,1820.8,1820.4,6.06278012]
[1680330388185,4.2078,1821.1,1820.5,1.0]
[1680330388987,4.2078,1821.1,1820.4,10.13323029]
[1680330389187,4.2078,1821.1,1820.5,1.0]
[1680330389380,3.2078,1820.9,1820.4,10.13323029]
[1680330389594,3.2078,1820.9,1820.4,6.06278012]
[1680330389789,3.2078,1820.9,1820.4,10.13323029]
[1680330390293,3.2078,1820.9,1820.4,6.92543029]
[1680330391287,0.14734972,1821.0,1820.4,10.13323029]
[1680330391494,0.14734972,1821.0,1820.5,1.0]
[1680330392491,0.14734972,1821.0,1820.4,10.13323029]
[1680330392687,0.14734972,1821.0,1820.5,1.0]
[1680330393390,0.14734972,1821.0,1820.4,10.13323029]
[1680330393591,3.2078,1820.9,1820.5,1.0]
[1680330394687,0.14734972,1821.0,1820.5,1.0]
[1680330394688,0.14734972,1821.0,1820.6,3.2078]
[1680330395190,1.41600544,1821.2,1820.7,1.0]
[1680330395989,0.55543563,1821.2,1820.6,9.98740804]
[1680330396184,1.86056981,1821.2,1820.6,9.98740804]
[1680330396382,3.2078,1821.1,1820.6,9.98740804]
[1680330396988,3.2078,1821.1,1820.7,1.0]
[1680330397388,3.2078,1821.1,1820.6,9.98740804]
[1680330397588,3.2078,1821.1,1820.6,6.77960804]
[1680330398294,4.06836981,1821.1,1820.6,6.77960804]
[1680330398890,3.2078,1820.9,1820.5,0.86265017]
[1680330399193,3.2078,1820.7,1820.4,0.86265017]
[1680330401898,5.06836981,1821.0,1820.5,0.86265017]
[1680330402089,4.06836981,1821.0,1820.5,0.86265017]
[1680330402292,3.2078,1820.8,1820.5,0.86265017]
[1680330404397,0.14127053,1820.7,1820.5,0.86265017]
[1680330411803,0.14127053,1820.7,1820.6,0.86265017]
[1680330414812,0.86056981,1820.9,1820.6,2.14717281]
[1680330415006,0.86056981,1820.9,1820.7,0.86327587]
[1680330415203,0.86056981,1820.9,1820.7,1.86327587]
[1680330417004,4.06836981,1821.0,1820.7,1.86327587]
[1680330417613,0.86056981,1821.0,1820.7,1.86327587]
[1680330417804,2.00173984,1821.1,1820.8,1.86327587]
[1680330418011,0.86056981,1821.1,1820.8,1.86327587]
[1680330419412,0.08990384,1821.0,1820.8,1.86327587]
[1680330419806,0.08990384,1821.0,1820.9,0.86327587]
[1680330420008,0.86056981,1821.1,1820.9,6.92719383]
[1680330420207,0.86056981,1821.2,1820.9,6.92719383]
[1680330420407,0.86056981,1821.1,1820.9,6.06391796]
[1680330420607,0.86056981,1821.1,1820.9,6.92719383]
[1680330420809,1.0,1821.2,1821.0,0.86327587]
[1680330421009,1.86056981,1821.2,1821.0,0.86327587]
[1680330421209,5.06836981,1821.2,1820.9,6.92719383]
[1680330422514,5.06836981,1821.2,1820.9,0.86327587]
[1680330423110,0.86056981,1821.2,1820.9,0.86327587]
[1680330427821,4.06836981,1821.3,1820.9,0.86327587]
[1680330429925,4.06836981,1821.3,1821.0,0.86327587]
[1680330430128,0.86056981,1821.3,1821.0,0.86327587]
[1680330430329,1.86056981,1821.4,1821.0,0.86327587]
[1680330431518,0.86056981,1821.3,1821.0,0.86327587]
[1680330431918,1.86056981,1821.4,1821.0,0.86327587]
[1680330432614,2.3998284,1821.4,1821.0,0.86327587]
[1680330434426,0.09154614,1821.3,1821.0,0.86327587]
[1680330434821,2.3998284,1821.4,1821.0,0.86327587]
[1680330435022,2.3998284,1821.4,1820.9,0.86327587]
[1680330435223,1.0,1821.3,1820.9,1.86327587]
[1680330435424,1.0,1821.3,1820.9,0.86327587]
[1680330435624,1.0,1821.3,1821.0,0.86327587]
[1680330435824,2.3998284,1821.4,1821.0,0.86327587]
[1680330436024,2.3998284,1821.4,1820.9,0.86327587]
[1680330436228,2.3998284,1821.4,1820.9,1.86327587]
[1680330436424,1.3998284,1821.4,1820.9,1.86327587]
[1680330437027,1.3998284,1821.4,1821.0,0.86327587]
[1680330437531,1.3998284,1821.4,1821.1,6.27834953]
[1680330440935,1.3998284,1821.4,1820.9,1.86327587]
[1680330441137,2.3998284,1821.4,1820.9,0.86327587]
[1680330441333,1.3998284,1821.4,1820.9,0.86327587]
[1680330441633,2.3998284,1821.4,1820.9,0.86327587]
[1680330441834,1.0,1821.3,1820.9,0.86327587]
[1680330442733,0.53925859,1821.4,1821.2,8.6998]
[1680330442940,0.86056981,1821.6,1821.2,3.2078]
[1680330443236,0.86056981,1821.7,1821.3,5.77428086]
[1680330443432,0.86056981,1821.6,1821.3,5.77428086]
[1680330443928,1.86056981,1821.7,1821.3,5.77428086]
[1680330444235,0.86056981,1821.6,1821.2,3.2078]
[1680330444535,0.00564772,1821.3,1821.2,3.2078]
[1680330448336,0.00564772,1821.3,1821.1,0.86327587]
[1680330449134,0.00564772,1821.3,1821.2,3.2078]
[1680330449334,3.2078,1821.6,1821.2,3.2078]
[1680330449335,3.2078,1821.6,1821.3,0.00162856]
[1680330449531,1.0,1821.5,1821.3,0.00162856]
[1680330455240,0.86056981,1821.6,1821.3,0.00162856]
[1680330455444,1.86056981,1821.7,1821.3,0.00162856]
[1680330456748,0.86056981,1821.6,1821.3,0.00162856]
[1680330456946,1.86056981,1821.7,1821.3,0.00162856]
[1680330458951,0.86056981,1821.6,1821.3,0.00162856]
[1680330463151,0.57327654,1821.5,1821.3,0.00162856]
[1680330463451,0.57327654,1821.5,1821.3,0.86490443]
[1680330463945,0.57327654,1821.5,1821.3,0.00162856]
[1680330464346,0.57327654,1821.5,1821.3,0.86490443]
[1680330464746,0.57327654,1821.5,1821.3,0.00162856]
[1680330465451,0.57327654,1821.5,1821.3,0.86490443]
[1680330465757,0.57327654,1821.5,1821.3,0.00162856]
[1680330466055,0.57327654,1821.5,1821.3,0.86490443]
[1680330467249,0.57327654,1821.5,1821.3,0.00162856]
[1680330467753,0.57327654,1821.5,1821.3,0.86490443]
[1680330468349,0.57000084,1821.5,1821.3,0.86490443]
[1680330469258,1.43057065,1821.5,1821.3,0.00162856]
[1680330469553,0.86056981,1821.5,1821.3,0.00162856]
[1680330469753,0.86056981,1821.6,1821.3,0.86490443]
[1680330470348,0.86056981,1821.5,1821.3,0.86490443]
[1680330471053,0.86056981,1821.6,1821.3,0.86490443]
[1680330472459,0.86056981,1821.6,1821.4,3.2078]
[1680330473157,0.86056981,1821.6,1821.4,4.07107587]
[1680330473358,0.86056981,1821.6,1821.4,3.2078]
[1680330474657,0.86056981,1821.5,1821.4,3.2078]
[1680330474846,0.86056981,1821.6,1821.4,3.2078]
[1680330475051,0.86056981,1821.6,1821.4,4.07107587]
[1680330475452,0.86056981,1821.6,1821.4,3.2078]
[1680330476658,0.86056981,1821.6,1821.4,4.07107587]
[1680330477253,0.86056981,1821.6,1821.4,3.2078]
[1680330477651,0.86056981,1821.6,1821.4,4.07107587]
[1680330478163,0.86056981,1821.6,1821.4,3.2078]
[1680330478764,0.86056981,1821.6,1821.4,4.07107587]
[1680330479366,0.86056981,1821.6,1821.4,3.2078]
[1680330479561,0.86056981,1821.6,1821.4,4.07107587]
[1680330480058,0.86056981,1821.6,1821.4,3.2078]
[1680330480460,0.86056981,1821.5,1821.4,4.07107587]
[1680330480862,0.86056981,1821.6,1821.4,4.07107587]
[1680330481065,0.86056981,1821.5,1821.4,3.2078]
[1680330481259,0.86056981,1821.6,1821.4,4.07107587]
[1680330482368,0.86056981,1821.5,1821.4,4.07107587]
[1680330482563,0.86056981,1821.6,1821.4,4.07107587]
[1680330483161,0.86056981,1821.5,1821.4,4.07107587]
[1680330483363,0.86056981,1821.6,1821.4,4.07107587]
[1680330483770,0.86056981,1821.5,1821.4,4.07107587]
[1680330483972,0.86056981,1821.6,1821.4,4.07107587]
[1680330484362,0.86056981,1821.5,1821.4,4.07107587]
[1680330484869,0.86056981,1821.6,1821.4,4.07107587]
[1680330485275,0.86056981,1821.5,1821.4,4.07107587]
[1680330487365,1.68356981,1821.5,1821.4,4.07107587]
[1680330488674,1.68356981,1821.5,1821.4,4.35497281]
[1680330488865,1.68356981,1821.5,1821.4,3.2078]
[1680330492976,1.68356981,1821.5,1821.4,4.0717347]
[1680330493271,1.68356981,1821.5,1821.4,4.07173381]
[1680330493470,1.68356981,1821.5,1821.4,3.2078]
[1680330493669,1.68486047,1821.5,1821.4,4.07173868]
[1680330494271,1.96417003,1821.5,1821.4,0.57599223]
[1680330494574,15.49771127,1821.5,1821.3,0.00162856]
[1680330494768,18.70751127,1821.4,1821.3,0.00162856]
[1680330494971,19.70212434,1821.4,1821.3,0.00162856]
[1680330495370,25.10218124,1821.4,1821.3,0.00162856]
[1680330496675,26.01017576,1821.4,1821.3,0.00162856]
[1680330497874,11.92633587,1821.4,1821.3,0.00162856]
[1680330499067,7.86745706,1821.4,1821.3,0.00162856]
[1680330499877,7.18659116,1821.4,1821.3,0.00162856]
[1680330500069,7.74163884,1821.4,1821.3,0.00162856]
[1680330500282,9.41760584,1821.4,1821.3,0.00162856]
[1680330501478,8.73663884,1821.4,1821.3,0.00162856]
[1680330503877,7.30351765,1821.4,1821.3,0.00162856]
[1680330504076,8.73663884,1821.4,1821.3,0.00162856]
[1680330504583,7.30351765,1821.4,1821.3,0.00162856]
[1680330504984,8.44866914,1821.4,1821.3,0.00162856]
[1680330509298,8.48947494,1821.4,1821.3,0.00162856]
[1680330509484,13.98147494,1821.4,1821.3,0.00162856]
[1680330509885,13.98086959,1821.4,1821.3,0.00162856]
[1680330510188,13.98088267,1821.4,1821.3,0.00162856]
[1680330510385,15.1253658,1821.4,1821.3,0.00162856]
[1680330512101,9.6333658,1821.4,1821.3,0.00162856]
[1680330513293,15.1253658,1821.4,1821.3,0.00162856]
[1680330513494,15.1253658,1821.4,1820.6,0.57599223]
[1680330513495,6.492,1821.3,1820.6,0.57599223]
[1680330513698,0.819,1820.7,1820.6,1.57599223]
[1680330513901,0.819,1820.7,1820.6,0.57599223]
[1680330515496,0.821,1820.7,1820.5,4.64773091]
[1680330515802,0.823,1820.6,1820.5,3.78379223]
[1680330518094,0.823,1820.6,1820.5,3.2078]
[1680330519992,0.823,1820.6,1820.4,0.57599223]
[1680330520197,0.823,1820.6,1820.3,3.78379223]
[1680330520598,0.823,1820.6,1820.3,4.78379223]
[1680330521002,0.823,1820.6,1820.4,6.23679171]
[1680330521203,0.823,1820.6,1820.4,7.23679171]
[1680330521906,0.823,1820.6,1820.4,6.23679171]
[1680330523106,0.823,1820.6,1820.4,7.23679171]
[1680330524305,0.09883564,1820.5,1820.4,6.23679171]
[1680330526109,0.09883564,1820.5,1820.4,7.23679171]
[1680330526307,0.09883564,1820.5,1820.4,6.23679171]
[1680330527106,0.92183564,1820.5,1820.4,6.23679171]
[1680330528706,0.92183564,1820.5,1820.3,3.78379223]
[1680330529098,0.92183564,1820.5,1820.3,3.2078]
[1680330530405,0.92183564,1820.5,1820.3,3.78379223]
[1680330530612,0.92183564,1820.5,1820.3,3.2078]
[1680330531213,1.639,1820.4,1820.3,3.2078]
[1680330535514,1.639,1820.4,1820.2,1.57599223]
[1680330535708,0.823,1820.3,1820.2,0.57599223]
[1680330538821,0.823,1820.3,1820.2,0.86393868]
[1680330539024,0.823,1820.3,1820.2,1.86393868]
[1680330539423,0.98956283,1820.3,1820.2,1.86393868]
[1680330540014,0.98956283,1820.3,1820.2,0.86393868]
[1680330540219,0.98956283,1820.3,1820.2,1.86393868]
[1680330541923,0.16656283,1820.3,1820.2,1.86393868]
[1680330549933,0.16656283,1820.3,1820.2,1.0]
[1680330551938,0.16656283,1820.3,1820.2,2.14717281]
[1680330555228,1.82650693,1820.3,1820.2,2.14717281]
[1680330555432,1.82650693,1820.3,1820.2,1.818]
[1680330555631,1.67719837,1820.8,1820.3,1.77]
[1680330555836,1.67719837,1820.8,1820.6,0.57508693]
[1680330556136,0.0956066,1820.7,1820.6,1.57508693]
[1680330556330,0.0956066,1820.7,1820.6,1.0]
[1680330556732,0.0956066,1820.7,1820.5,5.64551732]
[1680330556936,0.0956066,1820.7,1820.5,1.57508693]
[1680330557438,0.0956066,1820.7,1820.5,0.57508693]
[1680330557926,0.0956066,1820.7,1820.6,0.57508693]
[1680330557927,0.95380497,1820.7,1820.6,0.57508693]
[1680330558128,0.95380497,1820.7,1820.5,1.43771732]
[1680330558730,0.95380497,1820.7,1820.6,0.57508693]
[1680330561740,2.59080497,1820.7,1820.6,0.57508693]
[1680330562037,2.7326066,1820.7,1820.5,1.43771732]
[1680330562237,1.68347572,1820.6,1820.5,1.43771732]
[1680330562438,2.68347572,1820.6,1820.5,0.57508693]
[1680330562644,2.68347572,1820.6,1820.5,1.43771732]
[1680330563239,2.79056525,1820.6,1820.5,1.43771732]
[1680330563739,2.79056525,1820.6,1820.5,0.86263039]
[1680330565341,7.10415402,1820.6,1820.5,0.57593086]
[1680330565638,1.0,1820.5,1820.2,0.86263039]
[1680330565844,0.823,1820.3,1820.2,0.86263039]
[1680330566337,2.68359768,1820.3,1820.2,0.86263039]
[1680330566754,2.68359768,1820.3,1820.1,0.86263039]
[1680330567046,4.8528,1820.2,1820.1,0.86263039]
[1680330567230,5.71339768,1820.2,1820.0,1.01263039]
[1680330567435,1.67559768,1820.1,1820.0,0.15]
[1680330567631,14.09546358,1820.1,1819.8,0.86263039]
[1680330567841,14.09546358,1820.1,1819.5,3.2078]
[1680330567842,12.01590528,1819.9,1819.4,1.43989143]
[1680330568149,0.823,1819.5,1819.4,1.43989143]
[1680330568447,1.643,1819.5,1819.3,1.43989143]
[1680330568633,0.823,1819.4,1819.3,1.43989143]
[1680330569438,0.823,1819.4,1819.1,3.2078]
[1680330569439,1.0,1819.3,1819.1,1.44022265]
[1680330569634,1.633,1819.2,1819.1,1.44022265]
[1680330569840,1.633,1819.2,1819.0,0.1]
[1680330570039,0.823,1819.1,1819.0,0.1]
[1680330570236,1.823,1819.1,1819.0,0.1]
[1680330570643,1.641,1819.1,1819.0,0.1]
[1680330570847,4.8488,1819.1,1819.0,0.1]
[1680330571248,0.1,1819.0,1818.7,2.265e-05]
[1680330571447,5.492,1818.7,1818.2,1.72370906]
[1680330571752,0.823,1818.2,1817.4,1.7245683]
[1680330571956,4.0268,1818.1,1817.5,3.2078]
[1680330572143,4.0268,1818.1,1817.6,0.821]
[1680330572347,0.819,1818.1,1817.6,0.821]
[1680330572546,1.1,1818.1,1817.7,1.0]
[1680330572751,1.1,1818.1,1817.7,4.2078]
[1680330572946,4.2978,1818.4,1817.8,6.99701134]
[1680330572947,1.092,1818.3,1817.8,6.99701134]
[1680330573151,4.3078,1818.1,1817.7,1.0]
[1680330573451,4.3078,1818.1,1817.3,3.76393596]
[1680330573646,4.3078,1818.1,1817.6,1.095]
[1680330573849,3.2078,1818.1,1817.7,1.1]
[1680330574047,1.1,1818.1,1817.7,9.07664703]
[1680330574249,1.1,1818.5,1818.0,4.3078]
[1680330574748,1.1,1818.5,1818.1,1.55693612]
[1680330575138,1.1,1818.5,1818.2,3.2078]
[1680330575545,1.1,1818.5,1818.4,1.0]
[1680330575854,3.2078,1819.3,1818.4,10.7998]
[1680330576047,3.2078,1819.3,1818.7,3.2078]
[1680330576245,1.09,1819.2,1818.7,3.2078]
[1680330576442,1.09,1819.2,1818.9,3.2078]
[1680330576749,0.56154938,1819.6,1819.1,3.2078]
[1680330576750,1.1,1819.4,1819.1,3.2078]
[1680330576952,0.21103836,1819.3,1819.2,1.0]
[1680330577151,0.21103836,1819.3,1819.2,0.03116759]
[1680330578251,1.31103836,1819.3,1819.0,1.0]
[1680330578451,1.1,1819.2,1819.0,1.0]
[1680330578847,1.1,1819.2,1819.1,6.18326495]
[1680330579355,1.093,1819.4,1819.1,6.18326495]
[1680330579655,1.093,1819.4,1819.0,1.0]
[1680330580447,1.092,1819.2,1818.9,4.2078]
[1680330581043,1.092,1819.2,1819.0,6.26479646]
[1680330581453,1.092,1819.2,1819.0,7.26479646]
[1680330582154,1.092,1819.2,1819.0,6.26479646]
[1680330582855,5.3928,1819.1,1818.5,9.276]
[1680330583054,1.093,1818.8,1818.5,9.276]
[1680330583255,1.093,1818.8,1818.5,4.2078]
[1680330583552,1.093,1818.8,1818.6,5.91210047]
[1680330583762,0.23424464,1818.7,1818.6,5.91210047]
[1680330584754,0.23424464,1818.7,1818.3,4.3078]
[1680330585052,1.093,1818.8,1818.3,4.3078]
[1680330585258,0.31558442,1818.6,1818.4,1.0]
[1680330585557,1.093,1818.8,1818.4,7.28347209]
[1680330585750,0.31485592,1818.5,1818.4,7.28347209]
[1680330585951,1.093,1818.8,1818.4,7.28347209]
[1680330586261,1.092,1818.5,1818.4,6.28347209]
[1680330586952,0.36407626,1818.7,1818.4,6.28347209]
[1680330586953,1.093,1818.6,1818.4,7.28347209]
[1680330587260,1.093,1818.6,1818.5,1.0]
[1680330587560,1.45714284,1818.6,1818.5,1.0]
[1680330587954,0.36414284,1818.6,1818.5,4.2078]
[1680330588154,1.093,1818.8,1818.5,4.2078]
[1680330588353,1.093,1818.8,1818.5,9.89962897]
[1680330588549,1.42397877,1818.7,1818.5,5.69182897]
[1680330588761,1.1,1818.6,1818.1,7.9609]
[1680330589059,1.093,1818.3,1818.2,1.0]
[1680330589265,1.093,1818.3,1817.9,3.2078]
[1680330589464,1.093,1818.3,1818.0,1.0]
[1680330589861,1.093,1818.3,1818.1,5.8530902]
[1680330590162,1.093,1818.3,1818.2,1.0]
[1680330590353,1.093,1818.3,1818.1,5.8530902]
[1680330590856,4.3078,1818.5,1818.1,5.8530902]
[1680330591258,3.2078,1818.3,1818.1,5.8530902]
[1680330591766,3.2078,1818.3,1818.0,2.1]
[1680330592852,1.1,1818.5,1818.1,3.2078]
[1680330593057,1.1,1818.5,1818.2,1.0]
[1680330593865,1.1,1818.5,1818.1,9.33149765]
[1680330594355,1.1,1818.5,1818.1,6.12369765]
[1680330595964,2.1,1818.5,1818.1,6.12369765]
[1680330596363,1.1,1818.5,1818.1,6.12369765]
[1680330596561,1.1,1818.5,1818.0,1.1]
[1680330596757,3.2078,1818.4,1818.0,1.1]
[1680330597059,1.093,1818.3,1817.9,4.2078]
[1680330597467,1.093,1818.3,1817.9,3.2078]
[1680330597666,4.3008,1818.3,1817.9,3.2078]
[1680330597863,4.3008,1818.3,1817.8,2.097]
[1680330598469,4.3008,1818.3,1817.8,1.097]
[1680330598663,4.3008,1818.3,1817.8,2.097]
[1680330598871,3.2078,1818.1,1817.8,1.097]
[1680330599474,0.36508388,1818.0,1817.8,1.097]
[1680330599661,0.36508388,1818.0,1817.7,3.75742005]
[1680330599967,0.36508388,1818.0,1817.8,1.0]
[1680330600170,3.2078,1818.6,1817.9,3.2078]
[1680330600372,3.2078,1818.6,1818.1,3.2078]
[1680330600574,1.092,1818.5,1818.0,7.97475338]
[1680330600973,3.2078,1818.4,1818.0,6.97475338]
[1680330601172,1.1,1818.2,1817.7,1.1]
[1680330601780,1.1,1818.2,1817.8,6.21610497]
[1680330602282,4.3078,1818.2,1817.9,1.0]
[1680330602473,4.3078,1818.2,1817.8,6.21610497]
[1680330602669,4.3078,1818.2,1818.0,6.17133848]
[1680330602870,4.3078,1818.2,1817.7,1.1]
[1680330603577,4.3078,1818.0,1817.8,5.73084849]
[1680330603882,4.3078,1818.0,1817.7,6.21241143]
[1680330604077,4.3008,1818.2,1817.7,7.30941143]
[1680330604282,3.2078,1818.5,1817.9,1.092]
[1680330604480,3.2078,1818.3,1817.9,1.092]
[1680330604675,3.2078,1818.3,1817.8,4.2078]
[1680330604676,1.1,1818.2,1818.0,5.92573259]
[1680330604875,3.2078,1818.3,1817.6,3.2078]
[1680330604876,1.1,1818.1,1817.6,3.2078]
[1680330605076,1.1,1818.1,1817.8,3.2078]
[1680330605382,1.1,1818.1,1817.7,4.2078]
[1680330605580,1.1,1818.1,1817.9,6.01241828]
[1680330605781,1.1,1818.2,1817.8,0.40636331]
[1680330605977,1.09,1818.4,1817.9,4.3078]
[1680330606177,0.34609387,1818.0,1817.9,4.3078]
[1680330606385,1.09,1818.4,1818.0,5.77188283]
[1680330606583,1.09,1818.4,1818.1,3.2078]
[1680330606779,0.34613313,1818.3,1818.1,3.2078]
[1680330606980,0.34613313,1818.3,1818.2,6.03877396]
[1680330607481,0.34613313,1818.3,1818.0,6.1231668]